fUSD/lending_fUSD_20250207
["ID","MTS","AMOUNT","RATE_DAILY","PERIOD"]
[352135624,1738956719528,-500.0,0.00018765,2]
[352135625,1738956719538,-500.0,0.00018765,2]
[352135626,1738956719547,-500.0,0.00018765,2]
[352135627,1738956719558,-500.0,0.00018765,2]
[352135628,1738956719567,-500.0,0.00018765,2]
[352135629,1738956719579,-540.67,0.00018765,2]
[352135630,1738956719590,-557.1,0.00018765,2]
[352135631,1738956719599,-164.93627339,0.00018765,2]
[352135632,1738956719609,-500.0,0.00018765,2]
[352135633,1738956719618,-530.71,0.00018765,2]
[352135634,1738956719627,-2942.64,0.00018765,2]
[352135635,1738956719637,-1743.62,0.00018765,2]
[352135636,1738956719647,-720.06,0.00018765,2]
[352135637,1738956719657,-5046.81,0.00018765,2]
[352135638,1738956719669,-1994.07,0.00018765,2]
[352135639,1738956719679,-1138.25,0.00018765,2]
[352135640,1738956719687,-500.0,0.00018765,2]
[352135641,1738956719697,-3516.18,0.00018765,2]
[352135642,1738956719706,-500.0,0.00018765,2]
[352135643,1738956719715,-500.0,0.00018765,2]
[352135644,1738956719724,-1024.51,0.00018765,2]
[352135645,1738956719733,-2173.49,0.00018765,2]
[352135646,1738956719744,-612.99,0.00018765,2]
[352135647,1738956719754,-1229.36,0.00018765,2]
[352135648,1738956719763,-2227.07,0.00018765,2]
[352135649,1738956719773,-2301.73,0.00018765,2]
[352135650,1738956719782,-1183.89,0.00018765,2]
[352135651,1738956719791,-518.71,0.00018765,2]
[352135652,1738956719801,-2133.71,0.00018765,2]
[352135653,1738956719810,-500.0,0.00018765,2]
[352135654,1738956719820,-2304.96,0.00018765,2]
[352135655,1738956719830,-4101.49,0.00018765,2]
[352135656,1738956719840,-629.73,0.00018765,2]
[352135657,1738956719849,-10904.08,0.00018765,2]
[352135658,1738956719858,-1990.52,0.00018765,2]
[352135659,1738956719867,-1994.74,0.00018765,2]
[352135660,1738956719878,-2018.74,0.00018765,2]
[352135661,1738956719888,-500.0,0.00018765,2]
[352135662,1738956719897,-500.0,0.00018765,2]
[352135663,1738956719906,-500.0,0.00018765,2]
[352135664,1738956719915,-500.0,0.00018765,2]
[352135665,1738956719925,-1695.7,0.00018765,2]
[352135666,1738956719934,-3966.69,0.00018765,2]
[352135667,1738956719943,-662.29,0.00018765,2]
[352135668,1738956719953,-1062.51,0.00018766,2]
[352135669,1738956719963,-1219.59,0.00018766,2]
[352135670,1738956719972,-857.35,0.00018766,2]
[352135671,1738956719982,-526.56,0.00018766,2]
[352135672,1738956719991,-547.58,0.00018766,2]
[352135673,1738956720000,-500.0,0.00018766,2]
[352135674,1738956720009,-1136.81,0.00018766,2]
[352135675,1738956720019,-533.79,0.00018766,2]
[352135676,1738956720028,-500.0,0.00018766,2]
[352135677,1738956720037,-1186.33,0.00018766,2]
[352135678,1738956720047,-500.0,0.00018766,2]
[352135679,1738956720057,-529.03,0.00018766,2]
[352135680,1738956720066,-1230.22,0.00018766,2]
[352135681,1738956720076,-1245.85,0.00018766,2]
[352135682,1738956720086,-500.0,0.00018766,2]
[352135683,1738956720095,-1446.41,0.00018766,2]
[352135684,1738956720105,-565.43,0.00018766,2]
[352135685,1738956720115,-564.24,0.00018766,2]
[352135686,1738956720125,-500.0,0.00018766,2]
[352135687,1738956720135,-550.96,0.00018766,2]
[352135688,1738956720146,-1579.64,0.00018766,2]
[352135689,1738956720156,-520.2,0.00018766,2]
[352135690,1738956720166,-1605.34,0.00018766,2]
[352135691,1738956720175,-1579.05,0.00018766,2]
[352135692,1738956720185,-551.37,0.00018766,2]
[352135693,1738956720195,-601.14,0.00018766,2]
[352135694,1738956720204,-1184.1,0.00018766,2]
[352135695,1738956720214,-678.58,0.00018766,2]
[352135696,1738956720224,-515.45,0.00018766,2]
[352135697,1738956720234,-521.99,0.00018766,2]
[352135698,1738956720243,-2651.33,0.00018766,2]
[352135699,1738956720254,-615.95,0.00018766,2]
[352135700,1738956720263,-500.0,0.00018766,2]
[352135701,1738956720273,-272.473505,0.00018767,2]
[352135702,1738956720282,-272.473505,0.00018767,2]
[352135703,1738956720292,-757.978893,0.00018767,2]
[352135704,1738956720302,-757.978893,0.00018767,2]
[352135705,1738956720312,-151.0,0.00018767,2]
[352135706,1738956720323,-151.0,0.00018767,2]
[352135707,1738956720333,-151.0,0.00018767,2]
[352135708,1738956720343,-151.0,0.00018767,2]
[352135709,1738956720353,-151.0,0.00018767,2]
[352135710,1738956720363,-2649.807755,0.00018767,2]
[352135711,1738956720373,-2649.807755,0.00018767,2]
[352135712,1738956720383,-517.06058239,0.00018767,2]
[352135713,1738956720392,-659.78,0.00018767,2]
[352135714,1738956720402,-543.65316699,0.00018767,2]
[352135715,1738956720412,-270.05066203,0.00018767,2]
[352135716,1738956720422,-500.0,0.00018767,2]
[352135717,1738956720431,-513.84,0.00018767,2]
[352135718,1738956720441,-1712.36,0.00018767,2]
[352135719,1738956720451,-1938.63,0.00018767,2]
[352135720,1738956720460,-163.326306,0.00018767,2]
[352135721,1738956720470,-1697.97,0.00018767,2]
[352135722,1738956720479,-163.326306,0.00018767,2]
[352135723,1738956720489,-1225.54,0.00018767,2]
[352135724,1738956720498,-465.68,0.00018767,2]
[352135725,1738956720508,-676.85,0.00018767,2]
[352135726,1738956720518,-151.0,0.00018767,2]
[352135727,1738956720528,-1685.31,0.00018767,60]
[352135728,1738956720537,-541.77,0.00018767,2]
[352135729,1738956720547,-151.0,0.00018767,2]
[352135730,1738956720556,-667.78,0.00018767,2]
[352135731,1738956720566,-151.0,0.00018767,2]
[352135732,1738956720578,-573.49,0.00018767,2]
[352135733,1738956720590,-151.0,0.00018767,2]
[352135734,1738956720600,-1308.11,0.00018767,2]
[352135735,1738956720610,-1722.81,0.00018767,2]
[352135736,1738956720619,-507.47864157,0.00018767,2]
[352135737,1738956720630,-925.93,0.00018767,2]
[352135738,1738956720639,-1095.49,0.00018767,2]
[352135739,1738956720649,-649.37,0.00018767,2]
[352135740,1738956720658,-776.83,0.00018767,2]
[352135741,1738956720669,-151.0,0.00018767,2]
[352135742,1738956720678,-1010.35,0.00018767,2]
[352135743,1738956720687,-1263.77,0.00018767,2]
[352135744,1738956720697,-500.0,0.00018767,2]
[352135745,1738956720706,-1637.13,0.00018767,2]
[352135746,1738956720715,-694.17,0.00018767,2]
[352135747,1738956720725,-730.01,0.00018767,2]
[352135748,1738956720734,-500.0,0.00018767,2]
[352135749,1738956720744,-1444.08,0.00018767,2]
[352135750,1738956720753,-544.09,0.00018767,2]
[352135751,1738956720762,-712.73,0.00018767,2]
[352135752,1738956720771,-500.0,0.00018767,2]
[352135753,1738956720780,-490.31632599,0.00018767,2]
[352135754,1738956720790,-500.0,0.00018767,2]
[352135755,1738956720799,-500.0,0.00018767,2]
[352135756,1738956720809,-1676.26,0.00018767,2]
[352135757,1738956720818,-500.0,0.00018767,2]
[352135758,1738956720832,-622.11037755,0.00018767,2]
[352135759,1738956720842,-500.0,0.00018767,2]
[352135760,1738956720852,-1138.99,0.00018767,2]
[352135761,1738956720861,-500.0,0.00018767,2]
[352135762,1738956720871,-500.0,0.00018767,2]
[352135763,1738956720880,-500.0,0.00018767,2]
[352135764,1738956720889,-1316.0,0.00018767,2]
[352135765,1738956720899,-725.14,0.00018767,2]
[352135766,1738956720908,-289.194536,0.00018767,2]
[352135767,1738956720918,-289.194536,0.00018767,2]
[352135768,1738956720927,-1188.45,0.00018767,2]
[352135769,1738956720937,-2507.168506,0.00018767,2]
[352135770,1738956720946,-516.4,0.00018767,2]
[352135771,1738956720955,-2507.168506,0.00018767,2]
[352135772,1738956720964,-510.03,0.00018767,2]
[352135773,1738956720974,-230.489056,0.00018767,2]
[352135774,1738956720983,-230.489056,0.00018767,2]
[352135775,1738956720992,-500.0,0.00018767,2]
[352135776,1738956721001,-1472.92,0.00018767,2]
[352135777,1738956721011,-1412.12,0.00018767,2]
[352135778,1738956721020,-151.0,0.00018767,2]
[352135779,1738956721029,-500.0,0.00018767,2]
[352135780,1738956721038,-529.81,0.00018767,2]
[352135781,1738956721047,-981.75,0.00018767,2]
[352135782,1738956721057,-520.02,0.00018767,2]
[352135783,1738956721066,-647.02,0.00018767,2]
[352135784,1738956721076,-151.0,0.00018767,2]
[352135785,1738956721086,-1033.68,0.00018767,2]
[352135786,1738956721095,-151.0,0.00018767,2]
[352135787,1738956721104,-522.48,0.00018767,2]
[352135788,1738956721113,-662.32,0.00018767,2]
[352135789,1738956721123,-1353.23,0.00018767,2]
[352135790,1738956721134,-508.39,0.00018767,2]
[352135791,1738956721143,-1634.27,0.00018767,2]
[352135792,1738956721152,-500.0,0.00018767,2]
[352135793,1738956721161,-544.73,0.00018767,2]
[352135794,1738956721170,-529.48,0.00018767,2]
[352135795,1738956721179,-939.05,0.00018767,2]
[352135796,1738956721188,-1428.68,0.00018767,2]
[352135797,1738956721197,-690.69,0.00018767,2]
[352135798,1738956721206,-1130.37,0.00018767,2]
[352135799,1738956721216,-500.0,0.00018767,2]
[352135800,1738956721225,-1381.35,0.00018767,2]
[352135801,1738956721234,-580.24,0.00018767,2]
[352135802,1738956721243,-1489.45,0.00018767,2]
[352135803,1738956721252,-1168.21,0.00018767,2]
[352135804,1738956721261,-1435.35,0.00018767,2]
[352135805,1738956721271,-3966.24,0.00018767,2]
[352135806,1738956721280,-302.563588,0.00018767,2]
[352135807,1738956721290,-648.0,0.00018767,2]
[352135808,1738956721300,-10000.0,0.00018767,2]
[352135809,1738956721310,-1165.23,0.00018767,2]
[352135810,1738956721320,-302.563588,0.00018767,2]
[352135811,1738956721334,-527.47975956,0.00018767,2]
[352135812,1738956721344,-10000.0,0.00018767,2]
[352135813,1738956721354,-10000.0,0.00018767,2]
[352135814,1738956721364,-2615.59,0.00018767,2]
[352135815,1738956721374,-830.58,0.00018767,2]
[352135816,1738956721384,-2112.58,0.00018767,2]
[352135817,1738956721393,-10000.0,0.00018767,2]
[352135818,1738956721404,-1540.26,0.00018767,2]
[352135819,1738956721414,-10000.0,0.00018767,2]
[352135820,1738956721423,-1387.93,0.00018767,2]
[352135821,1738956721433,-1751.47,0.00018767,2]
[352135822,1738956721443,-2850.19,0.00018767,2]
[352135823,1738956721453,-10000.0,0.00018767,2]
[352135824,1738956721463,-603.96,0.00018767,2]
[352135825,1738956721473,-2172.91,0.00018767,2]
[352135826,1738956721482,-1670.17,0.00018767,2]
[352135827,1738956721492,-500.0,0.00018767,2]
[352135828,1738956721502,-1335.8,0.00018767,2]
[352135829,1738956721511,-1813.96,0.00018767,2]
[352135830,1738956721521,-500.0,0.00018767,2]
[352135831,1738956721530,-1815.88,0.00018767,2]
[352135832,1738956721540,-1078.85,0.00018767,2]
[352135833,1738956721550,-650.97,0.00018767,2]
[352135834,1738956721559,-1933.83,0.00018767,2]
[352135835,1738956721568,-1477.72,0.00018767,2]
[352135836,1738956721580,-520.8,0.00018767,2]
[352135837,1738956721591,-1313.81,0.00018767,2]
[352135838,1738956721601,-618.23,0.00018767,2]
[352135839,1738956721610,-500.0,0.00018767,2]
[352135840,1738956721619,-2982.88,0.00018767,2]
[352135841,1738956721630,-500.0,0.00018767,2]
[352135842,1738956721639,-599.08132049,0.00018767,2]
[352135843,1738956721649,-523.72,0.00018767,2]
[352135844,1738956721658,-1656.24,0.00018767,2]
[352135845,1738956721668,-3275.06,0.00018767,2]
[352135846,1738956721680,-1882.91,0.00018767,2]
[352135847,1738956721689,-972.36,0.00018767,2]
[352135848,1738956721699,-1686.85,0.00018767,2]
[352135849,1738956721708,-993.82,0.00018767,2]
[352135850,1738956721718,-2377.09,0.00018767,2]
[352135851,1738956721728,-1209.72,0.00018767,2]
[352135852,1738956721738,-1338.75,0.00018767,2]
[352135853,1738956721747,-3708.92,0.00018767,2]
[352135854,1738956721757,-2135.6,0.00018767,2]
[352135855,1738956721767,-2799.93,0.00018767,2]
[352135856,1738956721776,-2130.68,0.00018767,2]
[352135857,1738956721786,-928.35,0.00018767,2]
[352135858,1738956721796,-2642.08,0.00018767,2]
[352135859,1738956721805,-2968.87,0.00018767,2]
[352135860,1738956721814,-151.0,0.00018767,2]
[352135861,1738956721824,-4265.56,0.00018767,2]
[352135862,1738956721833,-1264.49,0.00018767,2]
[352135863,1738956721843,-2756.51,0.00018767,2]
[352135864,1738956721853,-1952.36,0.00018767,2]
[352135865,1738956721863,-2675.04,0.00018767,2]
[352135866,1738956721872,-2535.68,0.00018767,2]
[352135867,1738956721882,-1643.06,0.00018767,2]
[352135868,1738956721892,-2559.02,0.00018767,2]
[352135869,1738956721901,-982.62,0.00018767,2]
[352135870,1738956721911,-1048.24,0.00018767,2]
[352135871,1738956721920,-652.99,0.00018767,2]
[352135872,1738956721929,-3904.04,0.00018767,2]
[352135873,1738956721938,-1687.81,0.00018767,2]
[352135874,1738956721948,-1846.01,0.00018767,2]
[352135875,1738956721957,-8054.78,0.00018767,2]
[352135876,1738956721965,-2697.16,0.00018767,2]
[352135877,1738956721974,-1537.43,0.00018767,2]
[352135878,1738956721986,-4171.0,0.00018767,2]
[352135879,1738956721995,-634.65172141,0.00018767,2]
[352135880,1738956722004,-4545.2,0.00018767,2]
[352135881,1738956722014,-871.03,0.00018767,2]
[352135882,1738956722023,-1100.92,0.00018767,2]
[352135883,1738956722033,-4717.88,0.00018767,2]
[352135884,1738956722042,-1186.63,0.00018767,2]
[352135885,1738956722052,-778.34,0.00018767,2]
[352135886,1738956722061,-6146.82,0.00018767,2]
[352135887,1738956722070,-1352.28,0.00018767,2]
[352135888,1738956722083,-408.83669215,0.00018767,2]
[352135889,1738956722092,-2922.19,0.00018767,2]
[352135890,1738956722101,-823.38,0.00018767,2]
[352135891,1738956722110,-2029.74,0.00018767,2]
[352135892,1738956722119,-4297.56,0.00018767,2]
[352135893,1738956722128,-4260.15,0.00018767,2]
[352135894,1738956722138,-1150.5,0.00018767,2]
[352135895,1738956722147,-4984.09,0.00018767,2]
[352135896,1738956722156,-4214.42,0.00018767,2]
[352135897,1738956722165,-1455.84,0.00018767,2]
[352135898,1738956722174,-1559.73,0.00018767,2]
[352135899,1738956722184,-1241.92,0.00018767,2]
[352135900,1738956722193,-2692.24,0.00018767,2]
[352135901,1738956722203,-630.57,0.00018767,2]
[352135902,1738956722212,-500.0,0.00018767,2]
[352135903,1738956722221,-1067.17,0.00018767,2]
[352135904,1738956722230,-881.73,0.00018767,2]
[352135905,1738956722239,-3307.35,0.00018767,2]
[352135906,1738956722249,-2646.43,0.00018767,2]
[352135907,1738956722258,-548.98,0.00018767,2]
[352135908,1738956722268,-742.64,0.00018767,2]
[352135909,1738956722278,-3381.29,0.00018767,2]
[352135910,1738956722287,-151.0,0.00018767,2]
[352135911,1738956722458,-797.92,0.00018767,2]
[352135912,1738956722469,-553.95,0.00018767,2]
[352135913,1738956722479,-3042.11,0.00018767,2]
[352135914,1738956722488,-527.06,0.00018767,2]
[352135915,1738956722497,-500.0,0.00018767,2]
[352135916,1738956722507,-1555.24,0.00018767,2]
[352135917,1738956722516,-3666.13,0.00018767,2]
[352135918,1738956722526,-1049.9,0.00018767,2]
[352135919,1738956722535,-203.0,0.0001878,2]
[352135920,1738956722544,-152.704996,0.0001878,2]
[352135921,1738956722554,-152.704996,0.0001878,2]
[352135922,1738956722563,-500.0,0.00018815,2]
[352135923,1738956722572,-152.0,0.00018832,5]
[352135924,1738956722585,-1212.0,0.0001888,2]
[352135925,1738956722597,-295.80885,0.00018888,7]
[352135926,1738956722607,-10001.79553537,0.00018888,2]
[352135927,1738956722616,-1024.2385635,0.00018891,2]
[352135928,1738956722626,-10000.0,0.00018896,6]
[352135929,1738956722635,-77394.1357683,0.000189,2]
[352135930,1738956722645,-431.0,0.000189,2]
[352135931,1738956722654,-14541.85428887,0.000189,2]
[352135932,1738956722664,-78357.78146103,0.000189,14]
[352135933,1738956722674,-431.342835,0.000189,2]
[352135934,1738956722684,-431.342835,0.000189,2]
[352135935,1738956722693,-660.355421,0.000189,2]
[352135936,1738956722702,-660.355421,0.000189,2]
[352135937,1738956722712,-500.27,0.00018902,2]
[352135938,1738956722721,-500.0,0.00018902,2]
[352135939,1738956722730,-500.0,0.00018902,2]
[352135940,1738956722739,-500.0,0.00018902,2]
[352135941,1738956722748,-500.0,0.00018902,2]
[352135942,1738956722758,-500.0,0.00018902,2]
[352135943,1738956722767,-500.0,0.00018902,2]
[352135944,1738956722776,-540.67,0.00018902,2]
[352135945,1738956722785,-557.1,0.00018902,2]
[352135946,1738956722794,-500.0,0.00018902,2]
[352135947,1738956722804,-530.71,0.00018902,2]
[352135948,1738956722814,-2942.64,0.00018902,2]
[352135949,1738956722823,-1743.62,0.00018902,2]
[352135950,1738956722834,-720.06,0.00018902,2]
[352135951,1738956722843,-5046.81,0.00018902,2]
[352135952,1738956722853,-1994.07,0.00018902,2]
[352135953,1738956722862,-1138.25,0.00018902,2]
[352135954,1738956722872,-245.06,0.00018902,2]
[352135955,1738956722881,-3516.18,0.00018902,2]
[352135956,1738956722891,-500.0,0.00018902,2]
[352135957,1738956722900,-500.0,0.00018902,2]
[352135958,1738956722909,-1024.51,0.00018902,2]
[352135959,1738956722919,-2173.49,0.00018902,2]
[352135960,1738956722928,-612.99,0.00018902,2]
[352135961,1738956722939,-1229.36,0.00018902,2]
[352135962,1738956722948,-2227.07,0.00018902,2]
[352135963,1738956722958,-2301.73,0.00018902,2]
[352135964,1738956722968,-1183.89,0.00018902,2]
[352135965,1738956722977,-518.71,0.00018902,2]
[352135966,1738956722987,-2133.71,0.00018902,2]
[352135967,1738956722996,-500.0,0.00018902,2]
[352135968,1738956723006,-2304.96,0.00018902,2]
[352135969,1738956723016,-4101.49,0.00018902,2]
[352135970,1738956723025,-629.73,0.00018902,2]
[352135971,1738956723035,-10904.08,0.00018902,2]
[352135972,1738956723046,-1990.52,0.00018902,2]
[352135973,1738956723055,-1994.74,0.00018902,2]
[352135974,1738956723065,-2018.74,0.00018902,2]
[352135975,1738956723077,-500.0,0.00018902,2]
[352135976,1738956723087,-500.0,0.00018902,2]
[352135977,1738956723096,-500.0,0.00018902,2]
[352135978,1738956723106,-500.0,0.00018902,2]
[352135979,1738956723116,-1695.7,0.00018902,2]
[352135980,1738956723127,-3966.69,0.00018902,2]
[352135981,1738956723137,-662.29,0.00018902,2]
[352135982,1738956723148,-1062.51,0.00018903,2]
[352135983,1738956723157,-151.0,0.00018903,2]
[352135984,1738956723167,-151.0,0.00018903,2]
[352135985,1738956723177,-1219.59,0.00018903,2]
[352135986,1738956723187,-857.35,0.00018903,2]
[352135987,1738956723197,-526.56,0.00018903,2]
[352135988,1738956723207,-547.58,0.00018903,2]
[352135989,1738956723218,-500.0,0.00018903,2]
[352135990,1738956723227,-1136.81,0.00018903,2]
[352135991,1738956723237,-533.79,0.00018903,2]
[352135992,1738956723247,-500.0,0.00018903,2]
[352135993,1738956723257,-1186.33,0.00018903,2]
[352135994,1738956723271,-500.0,0.00018903,2]
[352135995,1738956723282,-529.03,0.00018903,2]
[352135996,1738956723293,-1230.22,0.00018903,2]
[352135997,1738956723304,-1245.85,0.00018903,2]
[352135998,1738956723315,-268.09,0.00018903,2]
[352135999,1738956723326,-1446.41,0.00018903,2]
[352136000,1738956723336,-565.43,0.00018903,2]
[352136001,1738956723346,-564.24,0.00018903,2]
[352136002,1738956723356,-500.0,0.00018903,2]
[352136003,1738956723367,-550.96,0.00018903,2]
[352136004,1738956723378,-1579.64,0.00018903,2]
[352136005,1738956723389,-520.2,0.00018903,2]
[352136006,1738956723399,-1605.34,0.00018903,2]
[352136007,1738956723410,-1579.05,0.00018903,2]
[352136008,1738956723421,-551.37,0.00018903,2]
[352136009,1738956723431,-601.14,0.00018903,2]
[352136010,1738956723441,-1184.1,0.00018903,2]
[352136011,1738956723451,-678.58,0.00018903,2]
[352136012,1738956723461,-515.45,0.00018903,2]
[352136013,1738956723472,-521.99,0.00018903,2]
[352136014,1738956723482,-2651.33,0.00018903,2]
[352136015,1738956723493,-615.95,0.00018903,2]
[352136016,1738956723503,-500.0,0.00018903,2]
[352136017,1738956723514,-462.25,0.00018904,2]
[352136018,1738956723524,-462.25,0.00018904,2]
[352136019,1738956723534,-500.0,0.00018904,2]
[352136020,1738956723544,-500.0,0.00018904,2]
[352136021,1738956723554,-659.78,0.00018904,2]
[352136022,1738956723563,-151.0,0.00018904,2]
[352136023,1738956723574,-589.88,0.00018904,2]
[352136024,1738956723585,-513.84,0.00018904,2]
[352136025,1738956723599,-1712.36,0.00018904,2]
[352136026,1738956723610,-1938.63,0.00018904,2]
[352136027,1738956723620,-2356.128627,0.00018904,2]
[352136028,1738956723631,-2356.128627,0.00018904,2]
[352136029,1738956723641,-1697.97,0.00018904,2]
[352136030,1738956723650,-434.483569,0.00018904,2]
[352136031,1738956723660,-434.483569,0.00018904,2]
[352136032,1738956723670,-1225.54,0.00018904,2]
[352136033,1738956723681,-676.85,0.00018904,2]
[352136034,1738956723691,-1685.31,0.00018904,60]
[352136035,1738956723701,-541.77,0.00018904,2]
[352136036,1738956723710,-204.7507,0.00018904,2]
[352136037,1738956723720,-667.78,0.00018904,2]
[352136038,1738956723731,-204.7507,0.00018904,2]
[352136039,1738956723741,-573.49,0.00018904,2]
[352136040,1738956723751,-1308.11,0.00018904,2]
[352136041,1738956723761,-1722.81,0.00018904,2]
[352136042,1738956723771,-925.93,0.00018904,2]
[352136043,1738956723781,-1095.49,0.00018904,2]
[352136044,1738956723791,-649.37,0.00018904,2]
[352136045,1738956723801,-776.83,0.00018904,2]
[352136046,1738956723812,-1010.35,0.00018904,2]
[352136047,1738956723822,-1263.77,0.00018904,2]
[352136048,1738956723833,-500.0,0.00018904,2]
[352136049,1738956723843,-1200.0,0.00018904,5]
[352136050,1738956723853,-1200.0,0.00018904,5]
[352136051,1738956723863,-1200.0,0.00018904,5]
[352136052,1738956723873,-1200.0,0.00018904,5]
[352136053,1738956723883,-1200.0,0.00018904,5]
[352136054,1738956723892,-1200.0,0.00018904,5]
[352136055,1738956723902,-1200.0,0.00018904,5]
[352136056,1738956723912,-1200.0,0.00018904,5]
[352136057,1738956723922,-1200.0,0.00018904,5]
[352136058,1738956723931,-1200.0,0.00018904,5]
[352136059,1738956723940,-1637.13,0.00018904,2]
[352136060,1738956723949,-1200.0,0.00018904,5]
[352136061,1738956723959,-1200.0,0.00018904,5]
[352136062,1738956723968,-1200.0,0.00018904,5]
[352136063,1738956723978,-1200.0,0.00018904,5]
[352136064,1738956723987,-1200.0,0.00018904,5]
[352136065,1738956723997,-694.17,0.00018904,2]
[352136066,1738956724007,-1200.0,0.00018904,5]
[352136067,1738956724016,-1200.0,0.00018904,5]
[352136068,1738956724026,-1200.0,0.00018904,5]
[352136069,1738956724036,-151.0,0.00018904,2]
[352136070,1738956724047,-730.01,0.00018904,2]
[352136071,1738956724057,-500.0,0.00018904,2]
[352136072,1738956724068,-1444.08,0.00018904,2]
[352136073,1738956724079,-712.73,0.00018904,2]
[352136074,1738956724089,-500.0,0.00018904,2]
[352136075,1738956724099,-1000.0,0.00018904,4]
[352136076,1738956724110,-334.72,0.00018904,2]
[352136077,1738956724119,-500.0,0.00018904,2]
[352136078,1738956724129,-1676.26,0.00018904,2]
[352136079,1738956724139,-500.0,0.00018904,2]
[352136080,1738956724149,-460.8715211,0.00018904,2]
[352136081,1738956724159,-1138.99,0.00018904,2]
[352136082,1738956724169,-500.0,0.00018904,2]
[352136083,1738956724178,-500.0,0.00018904,2]
[352136084,1738956724188,-500.0,0.00018904,2]
[352136085,1738956724198,-1316.0,0.00018904,2]
[352136086,1738956724208,-725.14,0.00018904,2]
[352136087,1738956724217,-1188.45,0.00018904,2]
[352136088,1738956724227,-516.4,0.00018904,2]
[352136089,1738956724237,-510.03,0.00018904,2]
[352136090,1738956724247,-500.0,0.00018904,2]
[352136091,1738956724256,-1472.92,0.00018904,2]
[352136092,1738956724266,-1412.12,0.00018904,2]
[352136093,1738956724276,-500.0,0.00018904,2]
[352136094,1738956724285,-529.81,0.00018904,2]
[352136095,1738956724295,-981.75,0.00018904,2]
[352136096,1738956724304,-520.02,0.00018904,2]
[352136097,1738956724313,-647.02,0.00018904,2]
[352136098,1738956724323,-1033.68,0.00018904,2]
[352136099,1738956724336,-522.48,0.00018904,2]
[352136100,1738956724346,-662.32,0.00018904,2]
[352136101,1738956724356,-1353.23,0.00018904,2]
[352136102,1738956724366,-508.39,0.00018904,2]
[352136103,1738956724376,-1634.27,0.00018904,2]
[352136104,1738956724385,-500.0,0.00018904,2]
[352136105,1738956724395,-544.73,0.00018904,2]
[352136106,1738956724405,-529.48,0.00018904,2]
[352136107,1738956724415,-939.05,0.00018904,2]
[352136108,1738956724425,-1428.68,0.00018904,2]
[352136109,1738956724435,-690.69,0.00018904,2]
[352136110,1738956724445,-1130.37,0.00018904,2]
[352136111,1738956724455,-1618.49441,0.00018904,2]
[352136112,1738956724465,-500.0,0.00018904,2]
[352136113,1738956724475,-1618.49441,0.00018904,2]
[352136114,1738956724485,-1381.35,0.00018904,2]
[352136115,1738956724495,-580.24,0.00018904,2]
[352136116,1738956724505,-1489.45,0.00018904,2]
[352136117,1738956724515,-1168.21,0.00018904,2]
[352136118,1738956724525,-1435.35,0.00018904,2]
[352136119,1738956724536,-3966.24,0.00018904,2]
[352136120,1738956724546,-648.0,0.00018904,2]
[352136121,1738956724556,-1165.23,0.00018904,2]
[352136122,1738956724566,-2615.59,0.00018904,2]
[352136123,1738956724578,-830.58,0.00018904,2]